fUSD/lending_fUSD_20241121
["ID","MTS","AMOUNT","RATE_DAILY","PERIOD"]
[342894712,1732198234584,-500.0,0.00041095,18]
[342894715,1732198234594,-500.0,0.00041095,18]
[342894716,1732198234603,-500.0,0.00041095,18]
[342894718,1732198234612,-500.0,0.00041095,18]
[342894721,1732198234622,-500.0,0.00041095,18]
[342894722,1732198234631,-500.0,0.00041095,18]
[342894724,1732198234640,-500.0,0.00041095,18]
[342894726,1732198234650,-500.0,0.00041095,18]
[342894728,1732198234660,-500.0,0.00041095,18]
[342894730,1732198234669,-500.0,0.00041095,18]
[342894732,1732198234682,-904.32,0.00041095,18]
[342894734,1732198234693,-500.0,0.00041095,18]
[342894736,1732198234702,-533.44,0.00041095,18]
[342894738,1732198234712,-1321.65,0.00041095,18]
[342894740,1732198234721,-351.05470805,0.00041095,18]
[342894743,1732198234739,-148.94529195,0.00041095,18]
[342894745,1732198234749,-500.0,0.00041095,18]
[342894747,1732198234759,-520.65,0.00041095,18]
[342894749,1732198234769,-603.45,0.00041095,18]
[342894751,1732198234779,-791.07,0.00041095,18]
[342894753,1732198234788,-1487.37,0.00041095,18]
[342894755,1732198234797,-990.48,0.00041095,18]
[342894757,1732198234807,-532.23,0.00041095,18]
[342894759,1732198234816,-500.0,0.00041095,18]
[342894761,1732198234826,-500.0,0.00041095,18]
[342894762,1732198234836,-500.0,0.00041095,18]
[342894764,1732198234845,-500.0,0.00041095,18]
[342894766,1732198234855,-759.58,0.00041095,18]
[342894768,1732198234865,-500.0,0.00041095,18]
[342894770,1732198234874,-500.0,0.00041095,18]
[342894772,1732198234883,-500.0,0.00041095,18]
[342894774,1732198234892,-500.0,0.00041095,18]
[342894776,1732198234901,-500.0,0.00041095,18]
[342894778,1732198234911,-557.66,0.00041095,18]
[342894780,1732198234920,-500.0,0.00041095,18]
[342894782,1732198234932,-500.0,0.00041095,18]
[342894784,1732198234942,-856.82,0.00041095,18]
[342894786,1732198234952,-154.589909,0.00041095,18]
[342894788,1732198234961,-876.551864,0.00041095,18]
[342894790,1732198234971,-170.542089,0.00041095,18]
[342894792,1732198234980,-500.0,0.00041095,18]
[342894794,1732198234990,-500.0,0.00041095,18]
[342894796,1732198234999,-355.05424184,0.00041095,18]
[342894801,1732198235039,-470.46011918,0.00041095,3]
[342894895,1732198238537,-1448.77,0.00040657,120]
[342894896,1732198238550,-1447.99769404,0.000407,15]
[342894897,1732198238559,-22608.83230596,0.00041095,3]
[342894898,1732198238586,-304.17668954,0.00041095,3]
[342894899,1732198238598,-33537.2831685,0.00041095,3]
[342894900,1732198238610,-9686.116,0.00041095,3]
[342894901,1732198238621,-24570.0,0.00041095,3]
[342894902,1732198238634,-16851.43751974,0.00041095,3]
[342894903,1732198238675,-1398.5,0.00041095,3]
[342894904,1732198238689,-4388.22808258,0.00041095,3]
[342894905,1732198238705,-45960.0,0.00041095,3]
[342894906,1732198238948,-1644.28755539,0.00041095,3]
[342894907,1732198238971,-87183.49629638,0.00041095,3]
[342894908,1732198238983,-11083.35713831,0.00041095,2]
[342894909,1732198238994,-144.94575816,0.00041095,18]
[342894910,1732198239006,-500.0,0.00041095,18]
[342894911,1732198239017,-801.74,0.00041095,18]
[342894912,1732198239027,-500.0,0.00041095,18]
[342894913,1732198239038,-879.62,0.00041095,18]
[342894914,1732198239048,-549.21664375,0.00041095,18]
[342894915,1732198239058,-500.0,0.00041095,18]
[342894916,1732198239069,-500.0,0.00041095,18]
[342894917,1732198239079,-690.3,0.00041095,18]
[342894918,1732198239089,-500.0,0.00041095,18]
[342894919,1732198239099,-500.0,0.00041095,18]
[342894921,1732198239109,-500.0,0.00041095,18]
[342894923,1732198239119,-652.32,0.00041095,18]
[342894925,1732198239128,-500.0,0.00041095,18]
[342894927,1732198239138,-923.06,0.00041095,18]
[342894929,1732198239148,-500.0,0.00041095,18]
[342894931,1732198239158,-2000.0,0.00041095,7]
[342894934,1732198239168,-610.82,0.00041095,18]
[342894935,1732198239178,-500.0,0.00041095,18]
[342894936,1732198239196,-500.0,0.00041095,18]
[342894937,1732198239206,-200.0,0.00041095,7]
[342894938,1732198239215,-607.73,0.00041095,18]
[342894939,1732198239226,-500.0,0.00041095,18]
[342894940,1732198239236,-976.02,0.00041095,18]
[342894941,1732198239246,-500.0,0.00041095,18]
[342894942,1732198239256,-554.53,0.00041095,18]
[342894943,1732198239267,-500.0,0.00041095,18]
[342894944,1732198239277,-500.0,0.00041095,18]
[342894945,1732198239287,-500.0,0.00041095,18]
[342894946,1732198239297,-500.0,0.00041095,18]
[342894947,1732198239307,-327.4994652,0.00041095,18]
[342894948,1732198239317,-500.0,0.00041095,18]
[342894949,1732198239328,-583.85,0.00041095,18]
[342894950,1732198239338,-500.0,0.00041095,120]
[342894951,1732198239348,-612.64,0.00041095,18]
[342894952,1732198239357,-616.11,0.00041095,18]
[342894953,1732198239367,-500.0,0.00041095,18]
[342894954,1732198239377,-727.42,0.00041095,18]
[342894955,1732198239387,-500.0,0.00041095,18]
[342894956,1732198239397,-548.85,0.00041095,18]
[342894957,1732198239407,-500.0,0.00041095,18]
[342894958,1732198239417,-500.0,0.00041095,18]
[342894959,1732198239427,-1515.11,0.00041095,18]
[342894960,1732198239441,-1415.64,0.00041095,18]
[342894961,1732198239451,-500.0,0.00041095,18]
[342894962,1732198239466,-638.18,0.00041095,18]
[342894963,1732198239476,-948.49,0.00041095,18]
[342894964,1732198239487,-1358.67,0.00041095,18]
[342894965,1732198239498,-635.24,0.00041095,18]
[342894966,1732198239508,-500.0,0.00041095,18]
[342894967,1732198239518,-703.49,0.00041095,18]
[342894968,1732198239529,-500.0,0.00041095,18]
[342894969,1732198239541,-712.52,0.00041095,18]
[342894970,1732198239550,-787.32,0.00041095,18]
[342894971,1732198239560,-500.0,0.00041095,18]
[342894972,1732198239570,-500.0,0.00041095,18]
[342894973,1732198239580,-500.0,0.00041095,18]
[342894974,1732198239590,-500.0,0.00041095,18]
[342894975,1732198239600,-500.0,0.00041095,18]
[342894976,1732198239609,-500.0,0.00041095,18]
[342894977,1732198239619,-515.76,0.00041095,18]
[342894978,1732198239629,-500.0,0.00041095,18]
[342894979,1732198239638,-500.0,0.00041095,18]
[342894980,1732198239648,-929.12,0.00041095,18]
[342894981,1732198239658,-581.44409289,0.00041095,18]
[342894982,1732198239667,-599.51,0.00041095,18]
[342894983,1732198239677,-551.82,0.00041095,18]
[342894984,1732198239692,-500.0,0.00041095,18]
[342894985,1732198239701,-500.0,0.00041095,18]
[342894986,1732198239712,-500.0,0.00041095,18]
[342894987,1732198239722,-500.0,0.00041095,18]
[342894988,1732198239732,-500.0,0.00041095,18]
[342894989,1732198239742,-500.0,0.00041095,18]
[342894990,1732198239752,-552.91,0.00041095,18]
[342894991,1732198239761,-500.0,0.00041095,18]
[342894992,1732198239771,-500.0,0.00041095,18]
[342894993,1732198239782,-1043.78,0.00041095,18]
[342894994,1732198239792,-500.0,0.00041095,18]
[342894995,1732198239802,-500.0,0.00041095,18]
[342894996,1732198239812,-500.0,0.00041095,18]
[342894997,1732198239822,-1641.6,0.00041095,18]
[342894998,1732198239831,-1030.81,0.00041095,18]
[342894999,1732198239840,-620.41,0.00041095,18]
[342895000,1732198239849,-1015.48,0.00041095,7]
[342895001,1732198239858,-375.25904286,0.00041095,18]
[342895002,1732198239868,-500.0,0.00041095,18]
[342895003,1732198239878,-500.0,0.00041095,18]
[342895004,1732198239888,-500.0,0.00041095,18]
[342895005,1732198239898,-500.0,0.00041095,18]
[342895006,1732198239908,-500.0,0.00041095,18]
[342895007,1732198239917,-896.53,0.00041095,18]
[342895008,1732198239927,-594.07,0.00041095,18]
[342895009,1732198239942,-500.0,0.00041095,18]
[342895010,1732198239951,-684.67,0.00041095,18]
[342895011,1732198239961,-500.0,0.00041095,18]
[342895012,1732198239971,-500.0,0.00041095,18]
[342895013,1732198239981,-510.25,0.00041095,18]
[342895014,1732198239992,-1308.42,0.00041095,18]
[342895015,1732198240002,-510.65,0.00041095,18]
[342895016,1732198240013,-500.0,0.00041095,18]
[342895017,1732198240022,-500.0,0.00041095,18]
[342895018,1732198240032,-1190.0,0.00041095,18]
[342895019,1732198240042,-916.61,0.00041095,18]
[342895020,1732198240051,-333.96747619,0.00041095,18]
[342895021,1732198240061,-500.0,0.00041095,18]
[342895022,1732198240071,-508.55,0.00041095,18]
[342895023,1732198240080,-1036.08,0.00041095,18]
[342895024,1732198240090,-500.0,0.00041095,18]
[342895025,1732198240100,-500.0,0.00041095,18]
[342895026,1732198240109,-500.0,0.00041095,18]
[342895027,1732198240119,-500.0,0.00041095,18]
[342895031,1732198240430,-500.0,0.00041095,18]
[342895032,1732198240458,-500.0,0.00041095,18]
[342895033,1732198240469,-876.61,0.00041095,18]
[342895034,1732198240480,-500.0,0.00041095,18]
[342895035,1732198240490,-500.0,0.00041095,18]
[342895036,1732198240500,-691.36,0.00041095,18]
[342895037,1732198240509,-500.0,0.00041095,18]
[342895038,1732198240521,-1314.78,0.00041095,18]
[342895039,1732198240530,-928.42,0.00041095,18]
[342895040,1732198240540,-552.18,0.00041095,18]
[342895041,1732198240551,-500.0,0.00041095,18]
[342895042,1732198240561,-500.0,0.00041095,18]
[342895043,1732198240571,-500.0,0.00041095,18]
[342895044,1732198240580,-500.0,0.00041095,18]
[342895045,1732198240590,-500.0,0.00041095,18]
[342895046,1732198240600,-500.0,0.00041095,18]
[342895047,1732198240609,-819.73,0.00041095,18]
[342895048,1732198240618,-1017.54,0.00041095,18]
[342895049,1732198240628,-534.57,0.00041095,18]
[342895050,1732198240638,-500.0,0.00041095,18]
[342895051,1732198240647,-773.86,0.00041095,18]
[342895052,1732198240657,-1009.56,0.00041095,18]
[342895053,1732198240666,-500.0,0.00041095,18]
[342895054,1732198240676,-500.0,0.00041095,18]
[342895055,1732198240688,-1189.15,0.00041095,18]
[342895056,1732198240698,-954.53,0.00041095,18]
[342895057,1732198240708,-500.0,0.00041095,18]
[342895058,1732198240717,-500.0,0.00041095,18]
[342895059,1732198240727,-500.0,0.00041095,18]
[342895060,1732198240736,-500.0,0.00041095,18]
[342895061,1732198240745,-500.0,0.00041095,18]
[342895062,1732198240755,-500.0,0.00041095,18]
[342895063,1732198240765,-500.0,0.00041095,18]
[342895064,1732198240774,-500.0,0.00041095,18]
[342895065,1732198240784,-500.0,0.00041095,18]
[342895066,1732198240793,-638.75485286,0.00041095,18]
[342895067,1732198240802,-500.0,0.00041095,18]
[342895068,1732198240812,-500.0,0.00041095,18]
[342895069,1732198240821,-837.31,0.00041095,18]
[342895070,1732198240830,-500.0,0.00041095,18]
[342895071,1732198240840,-500.0,0.00041095,18]
[342895072,1732198240852,-500.0,0.00041095,18]
[342895073,1732198240861,-500.0,0.00041095,18]
[342895074,1732198240871,-513.58,0.00041095,18]
[342895075,1732198240880,-1922.38,0.00041095,18]
[342895076,1732198240890,-500.0,0.00041095,18]
[342895077,1732198240899,-538.0,0.00041095,18]
[342895078,1732198240909,-826.45,0.00041095,18]
[342895079,1732198240919,-500.0,0.00041095,18]
[342895080,1732198240928,-1007.36,0.00041095,18]
[342895081,1732198240940,-566.4,0.00041095,18]
[342895082,1732198240950,-868.57,0.00041095,18]
[342895083,1732198240960,-500.0,0.00041095,18]
[342895084,1732198240970,-500.0,0.00041095,18]
[342895085,1732198240979,-500.0,0.00041095,18]
[342895086,1732198240989,-500.0,0.00041095,18]
[342895087,1732198240998,-500.0,0.00041095,18]
[342895088,1732198241008,-1235.33,0.00041095,18]
[342895089,1732198241017,-500.0,0.00041095,18]
[342895090,1732198241027,-500.0,0.00041095,18]
[342895091,1732198241036,-500.0,0.00041095,18]
[342895092,1732198241046,-756.37,0.00041095,18]
[342895093,1732198241055,-500.0,0.00041095,18]
[342895094,1732198241064,-609.93,0.00041095,18]
[342895095,1732198241074,-548.46,0.00041095,18]
[342895096,1732198241083,-500.0,0.00041095,18]
[342895097,1732198241093,-697.31,0.00041095,18]
[342895098,1732198241102,-500.0,0.00041095,18]
[342895099,1732198241111,-500.0,0.00041095,18]
[342895100,1732198241120,-500.0,0.00041095,18]
[342895101,1732198241129,-589.61,0.00041095,18]
[342895102,1732198241138,-500.0,0.00041095,18]
[342895103,1732198241147,-1000.0,0.00041095,18]
[342895104,1732198241157,-500.0,0.00041095,18]
[342895105,1732198241166,-500.0,0.00041095,18]
[342895106,1732198241176,-500.0,0.00041095,18]
[342895107,1732198241188,-1650.49,0.00041095,18]
[342895108,1732198241198,-1156.38,0.00041095,18]
[342895109,1732198241207,-500.0,0.00041095,18]
[342895110,1732198241218,-500.0,0.00041095,18]
[342895111,1732198241228,-500.0,0.00041095,18]
[342895112,1732198241238,-500.0,0.00041095,18]
[342895113,1732198241248,-500.0,0.00041095,18]
[342895114,1732198241257,-1357.84,0.00041095,18]
[342895115,1732198241267,-500.0,0.00041095,18]
[342895116,1732198241277,-500.0,0.00041095,18]
[342895117,1732198241287,-500.0,0.00041095,18]
[342895118,1732198241297,-500.0,0.00041095,18]
[342895119,1732198241306,-409.68006492,0.00041095,18]
[342895120,1732198241316,-500.0,0.00041095,18]
[342895121,1732198241326,-500.0,0.00041095,18]
[342895122,1732198241336,-500.0,0.00041095,18]
[342895123,1732198241346,-500.0,0.00041095,18]
[342895124,1732198241355,-616.16,0.00041095,18]
[342895125,1732198241365,-1005.71,0.00041095,18]
[342895126,1732198241375,-594.08,0.00041095,18]
[342895127,1732198241384,-500.0,0.00041095,18]
[342895128,1732198241394,-500.0,0.00041095,18]
[342895129,1732198241404,-623.26,0.00041095,18]
[342895130,1732198241413,-500.0,0.00041095,18]
[342895131,1732198241423,-1638.64,0.00041095,18]
[342895132,1732198241435,-500.0,0.00041095,18]
[342895133,1732198241445,-500.0,0.00041095,18]
[342895134,1732198241458,-500.0,0.00041095,18]
[342895135,1732198241468,-500.0,0.00041095,18]
[342895136,1732198241478,-1529.9,0.00041095,18]
[342895137,1732198241488,-500.0,0.00041095,18]
[342895138,1732198241498,-1444.22,0.00041095,18]
[342895139,1732198241509,-500.0,0.00041095,18]
[342895140,1732198241519,-684.45,0.00041095,18]
[342895141,1732198241529,-500.0,0.00041095,18]
[342895142,1732198241539,-523.32,0.00041095,18]
[342895143,1732198241550,-603.91,0.00041095,18]
[342895144,1732198241559,-500.0,0.00041095,18]
[342895145,1732198241569,-500.0,0.00041095,18]
[342895146,1732198241579,-553.51,0.00041095,18]
[342895147,1732198241588,-500.0,0.00041095,18]
[342895148,1732198241597,-500.0,0.00041095,18]
[342895149,1732198241607,-749.19,0.00041095,18]
[342895150,1732198241616,-543.36,0.00041095,18]
[342895151,1732198241626,-617.86,0.00041095,18]
[342895152,1732198241635,-500.0,0.00041095,18]
[342895153,1732198241645,-267.22030792,0.00041095,18]
[342895154,1732198241654,-500.0,0.00041095,18]
[342895155,1732198241664,-708.4,0.00041095,18]
[342895156,1732198241673,-500.0,0.00041095,18]
[342895157,1732198241682,-500.0,0.00041095,18]
[342895158,1732198241695,-746.44,0.00041095,18]
[342895159,1732198241704,-642.5,0.00041095,18]
[342895160,1732198241713,-500.0,0.00041095,18]
[342895161,1732198241723,-579.02,0.00041095,18]
[342895162,1732198241732,-500.0,0.00041095,18]
[342895163,1732198241741,-500.0,0.00041095,18]
[342895164,1732198241750,-500.0,0.00041095,18]
[342895165,1732198241760,-603.76,0.00041095,18]
[342895166,1732198241770,-500.0,0.00041095,18]
[342895167,1732198241779,-500.0,0.00041095,18]
[342895168,1732198241788,-500.0,0.00041095,18]
[342895169,1732198241798,-653.37,0.00041095,18]
[342895170,1732198241807,-500.0,0.00041095,18]
[342895171,1732198241817,-500.0,0.00041095,18]
[342895172,1732198241826,-500.0,0.00041095,18]
[342895173,1732198241835,-500.0,0.00041095,18]
[342895174,1732198241845,-503.97,0.00041095,18]
[342895175,1732198241854,-500.0,0.00041095,18]
[342895176,1732198241863,-1112.97,0.00041095,18]
[342895177,1732198241872,-500.0,0.00041095,18]
[342895178,1732198241882,-500.0,0.00041095,18]
[342895179,1732198241892,-500.0,0.00041095,18]
[342895180,1732198241901,-500.0,0.00041095,18]
[342895181,1732198241911,-500.0,0.00041095,18]
[342895182,1732198241920,-500.0,0.00041095,18]
[342895183,1732198241930,-500.0,0.00041095,18]
[342895184,1732198241941,-500.0,0.00041095,18]
[342895185,1732198241951,-500.0,0.00041095,18]
[342895186,1732198241961,-500.0,0.00041095,18]
[342895187,1732198241970,-529.85,0.00041095,18]
[342895188,1732198241980,-500.0,0.00041095,18]
[342895189,1732198241990,-522.75,0.00041095,18]
[342895190,1732198242000,-500.0,0.00041095,18]
[342895191,1732198242009,-500.0,0.00041095,18]
[342895192,1732198242019,-690.63,0.00041095,18]
[342895193,1732198242028,-500.0,0.00041095,18]
[342895194,1732198242038,-500.0,0.00041095,18]
[342895195,1732198242047,-500.0,0.00041095,18]
[342895196,1732198242056,-1227.47,0.00041095,18]
[342895197,1732198242065,-1896.22,0.00041095,18]
[342895198,1732198242075,-500.0,0.00041095,18]
[342895199,1732198242084,-522.03,0.00041095,18]
[342895200,1732198242093,-1098.36,0.00041095,18]
[342895201,1732198242104,-1290.5,0.00041095,18]
[342895202,1732198242113,-500.0,0.00041095,18]
[342895203,1732198242122,-728.67,0.00041095,18]
[342895204,1732198242132,-206.05883087,0.00041095,18]
[342895205,1732198242141,-500.0,0.00041095,18]
[342895206,1732198242151,-500.0,0.00041095,18]
[342895207,1732198242160,-500.0,0.00041095,18]
[342895208,1732198242170,-1692.23,0.00041095,18]
[342895209,1732198242179,-1420.87,0.00041095,18]
[342895210,1732198242192,-500.0,0.00041095,18]
[342895211,1732198242201,-737.7,0.00041095,18]
[342895212,1732198242211,-200.0,0.00041095,7]
[342895213,1732198242221,-500.0,0.00041095,18]
[342895214,1732198242231,-637.47,0.00041095,18]
[342895215,1732198242241,-525.71,0.00041095,18]
[342895216,1732198242250,-500.0,0.00041095,18]
[342895217,1732198242260,-500.0,0.00041095,18]
[342895218,1732198242269,-500.0,0.00041095,18]
[342895219,1732198242279,-500.0,0.00041095,18]
[342895220,1732198242289,-1133.98,0.00041095,18]
[342895221,1732198242299,-997.22,0.00041095,18]
[342895222,1732198242308,-1171.5,0.00041095,18]
[342895223,1732198242318,-506.85,0.00041095,18]
[342895224,1732198242329,-662.34,0.00041095,18]
[342895225,1732198242338,-500.0,0.00041095,18]
[342895226,1732198242348,-869.32,0.00041095,18]
[342895227,1732198242358,-500.0,0.00041095,18]
[342895228,1732198242368,-500.0,0.00041095,18]
[342895229,1732198242377,-500.0,0.00041095,18]
[342895230,1732198242387,-1462.94,0.00041095,18]
[342895231,1732198242397,-500.0,0.00041095,18]
[342895232,1732198242408,-500.0,0.00041095,18]
[342895233,1732198242417,-500.0,0.00041095,18]
[342895234,1732198242426,-500.0,0.00041095,18]
[342895235,1732198242439,-685.49,0.00041095,18]
[342895236,1732198242448,-500.0,0.00041095,18]
[342895237,1732198242459,-937.9,0.00041095,18]
[342895238,1732198242470,-500.0,0.00041095,18]
[342895239,1732198242480,-500.0,0.00041095,18]
[342895240,1732198242489,-808.51,0.00041095,18]
[342895241,1732198242499,-500.0,0.00041095,18]
[342895242,1732198242508,-500.0,0.00041095,18]
[342895243,1732198242518,-500.0,0.00041095,18]
[342895244,1732198242527,-500.0,0.00041095,18]
[342895245,1732198242536,-864.1,0.00041095,18]
[342895246,1732198242547,-272.2900822,0.00041095,18]
[342895247,1732198242556,-740.61,0.00041095,18]
[342895248,1732198242566,-2796.91,0.00041095,18]
[342895249,1732198242575,-500.0,0.00041095,18]
[342895250,1732198242584,-500.0,0.00041095,18]
[342895251,1732198242593,-500.0,0.00041095,18]
[342895252,1732198242602,-576.0,0.00041095,18]
[342895253,1732198242612,-602.3,0.00041095,18]
[342895254,1732198242621,-500.0,0.00041095,18]
[342895255,1732198242630,-5319.78,0.00041095,18]
[342895256,1732198242639,-500.0,0.00041095,18]
[342895257,1732198242650,-500.0,0.00041095,18]
[342895258,1732198242659,-1018.8,0.00041095,18]
[342895259,1732198242668,-500.0,0.00041095,18]
[342895260,1732198242677,-500.0,0.00041095,18]
[342895261,1732198242690,-668.07,0.00041095,18]
[342895262,1732198242700,-2000.0,0.00041095,30]
[342895263,1732198242710,-566.56,0.00041095,7]
[342895264,1732198242722,-500.0,0.00041095,18]
[342895265,1732198242732,-851.24,0.00041095,18]
[342895266,1732198242742,-500.0,0.00041095,18]
[342895267,1732198242753,-691.42,0.00041095,18]
[342895268,1732198242762,-653.77,0.00041095,18]
[342895269,1732198242771,-500.0,0.00041095,18]
[342895270,1732198242780,-500.0,0.00041095,18]
[342895271,1732198242789,-527.93,0.00041095,18]
[342895272,1732198242798,-939.36,0.00041095,18]
[342895273,1732198242808,-704.24,0.00041095,18]
[342895274,1732198242817,-3168.81,0.00041095,18]
[342895275,1732198242826,-500.0,0.00041095,18]
[342895276,1732198242835,-500.0,0.00041095,18]
[342895277,1732198242844,-1230.67,0.00041095,18]
[342895278,1732198242925,-513.27,0.00041095,18]
[342895279,1732198242935,-500.0,0.00041095,18]
[342895280,1732198242948,-500.0,0.00041095,18]
[342895281,1732198242957,-700.2,0.00041095,18]
[342895282,1732198242966,-500.0,0.00041095,18]
[342895283,1732198242975,-500.0,0.00041095,18]
[342895284,1732198242984,-500.0,0.00041095,18]
[342895285,1732198242993,-500.0,0.00041095,18]
[342895286,1732198243003,-500.0,0.00041095,18]
[342895287,1732198243012,-567.93,0.00041095,18]
[342895288,1732198243022,-4231.69,0.00041095,18]
[342895289,1732198243031,-500.0,0.00041095,18]
[342895290,1732198243040,-500.0,0.00041095,18]
[342895291,1732198243049,-500.0,0.00041095,18]
[342895292,1732198243058,-500.0,0.00041095,18]
[342895293,1732198243068,-767.33,0.00041095,18]
[342895294,1732198243077,-998.39,0.00041095,18]
[342895295,1732198243086,-1099.47,0.00041095,18]
[342895296,1732198243095,-1548.86,0.00041095,18]
[342895297,1732198243105,-500.0,0.00041095,18]
[342895298,1732198243114,-500.0,0.00041095,18]
[342895299,1732198243123,-1320.42,0.00041095,18]
[342895301,1732198243133,-800.02,0.00041095,18]
[342895303,1732198243142,-24806.02,0.00041095,18]
[342895304,1732198243152,-500.0,0.00041095,18]
[342895305,1732198243162,-3322.58,0.00041095,18]
[342895306,1732198243171,-500.0,0.00041095,18]
[342895307,1732198243180,-500.0,0.00041095,18]
[342895308,1732198243192,-500.0,0.00041095,18]
[342895309,1732198243202,-505.08,0.00041095,18]
[342895310,1732198243212,-500.0,0.00041095,18]
[342895311,1732198243222,-632.86,0.00041095,18]
[342895312,1732198243231,-1413.59,0.00041095,18]
[342895313,1732198243240,-500.0,0.00041095,18]
[342895314,1732198243250,-1603.37,0.00041095,18]
[342895315,1732198243259,-1141.92,0.00041095,18]
[342895316,1732198243269,-984.21,0.00041095,18]
[342895317,1732198243278,-500.0,0.00041095,18]
[342895318,1732198243288,-500.0,0.00041095,18]
[342895319,1732198243297,-3480.52,0.00041095,18]
[342895321,1732198243307,-1292.38,0.00041095,18]
[342895323,1732198243317,-520.61,0.00041095,18]
[342895325,1732198243326,-500.0,0.00041095,18]
[342895327,1732198243336,-2791.86,0.00041095,18]
[342895329,1732198243346,-500.0,0.00041095,18]
[342895331,1732198243356,-1886.02,0.00041095,18]
[342895332,1732198243364,-1013.08,0.00041095,18]
[342895333,1732198243373,-1015.9,0.00041095,18]
[342895334,1732198243382,-500.0,0.00041095,18]
[342895335,1732198243392,-546.51,0.00041095,18]
[342895336,1732198243401,-500.0,0.00041095,18]
[342895337,1732198243411,-3498.79,0.00041095,5]
[342895338,1732198243420,-500.0,0.00041095,18]
[342895339,1732198243429,-739.38,0.00041095,18]
[342895340,1732198243439,-500.0,0.00041095,18]
[342895341,1732198243453,-500.0,0.00041095,18]
[342895342,1732198243465,-803.9,0.00041095,18]
[342895343,1732198243474,-500.0,0.00041095,18]
[342895344,1732198243483,-1944.73,0.00041095,18]
[342895345,1732198243492,-754.96,0.00041095,18]
[342895346,1732198243502,-500.0,0.00041095,18]
[342895347,1732198243511,-500.0,0.00041095,18]
[342895348,1732198243520,-500.0,0.00041095,18]
[342895349,1732198243530,-1469.14,0.00041095,18]
[342895350,1732198243540,-686.55,0.00041095,18]
[342895351,1732198243550,-500.0,0.00041095,18]
[342895352,1732198243560,-1591.6,0.00041095,18]
[342895353,1732198243569,-579.65,0.00041095,18]
[342895354,1732198243578,-500.0,0.00041095,18]
[342895355,1732198243587,-500.0,0.00041095,18]
[342895356,1732198243596,-1329.32,0.00041095,18]
[342895357,1732198243605,-588.9,0.00041095,18]
[342895358,1732198243614,-500.0,0.00041095,18]
[342895359,1732198243624,-500.0,0.00041095,18]
[342895360,1732198243633,-500.0,0.00041095,18]
[342895361,1732198243642,-645.94,0.00041095,18]
[342895362,1732198243651,-500.0,0.00041095,18]
[342895363,1732198243660,-500.0,0.00041095,18]
[342895364,1732198243669,-500.0,0.00041095,18]
[342895365,1732198243678,-704.48,0.00041095,18]
[342895366,1732198243691,-629.74,0.00041095,18]
[342895367,1732198243700,-786.09,0.00041095,18]
[342895368,1732198243710,-611.96439197,0.00041095,18]
[342895369,1732198243720,-1612.35,0.00041095,18]